[Event "10th Floripa Open 2024"]
[Site "Florianopolis"]
[Date "2024.01.28"]
[Round "10.9"]
[White "Coppola, Claudio"]
[Black "Matsuura, Everaldo"]
[Result "1/2-1/2"]
[ECO "D00"]
[WhiteElo "2250"]
[BlackElo "2410"]
[Annotator "RC"]
[PlyCount "123"]
[EventDate "2024.01.10"]
[EventType "swiss"]
[EventCountry "BRA"]
[SourceTitle "playchess.com"]
[Source "ChessBase"]
[SourceQuality "1"]
[TimeControl "5400+30"]

1. d4 {[%emt 0:00:04]} Nf6 {[%emt 0:08:29]} 2. Nc3 {[%emt 0:01:01]} d5 {[%emt 0:00:33]} 3. Bf4 {[%emt 0:00:05]} g6 {[%emt 0:01:06]} 4. e3 {[%emt 0:00:40]} Bg7 {[%emt 0:00:43]} 5. h4 {[%emt 0:00:33]} h5 {[%emt 0:01:18]} 6. Nf3 {[%emt 0:02:06]} O-O {[%emt 0:00:58]} 7. Qd2 {[%emt 0:05:47]} c5 {[%emt 0:01:29]} 8. O-O-O {[%emt 0:05:38]} Qa5 {[%emt 0:02:37]} 9. Kb1 {[%emt 0:04:05]} cxd4 {[%emt 0:05:20]} 10. exd4 {[%emt 0:01:00]} Bg4 {[%emt 0:01:14]} 11. Be2 {[%emt 0:04:15]} Nc6 {[%emt 0:02:52]} 12. Ne5 {[%emt 0:02:04]} Bxe2 {[%emt 0:03:06]} 13. Qxe2 {[%emt 0:01:24]} Rac8 {[%emt 0:08:47]} 14. g4 {[%emt 0:06:48]} Nxg4 {[%emt 0:14:44]} 15. Nxg4 {[%emt 0:13:20]} Nxd4 {[%emt 0:02:28]} 16. Nh6+ {[%emt 0:04:25]} Kh7 {[%emt 0:02:47]} 17. Rxd4 {[%emt 0:04:55]} Bxd4 {[%emt 0:02:19]} 18. Nf5 {[%emt 0:03:40]} Bxc3 {[%emt 0:04:40]} 19. bxc3 {[%emt 0:00:30]} Qxc3 {[%emt 0:05:10]} 20. Be5 {[%emt 0:10:52]} Qb4+ {[%emt 0:14:39]} 21. Bb2 {[%emt 0:02:03]} Rce8 {[%emt 0:08:28]} 22. Ng3 {[%emt 0:12:55]} Qc4 {[%emt 0:00:12]} 23. Qd1 {[%emt 0:00:20]} Qg4 {[%emt 0:00:33]} 24. Qd2 {[%emt 0:05:39]} Rd8 {[%emt 0:01:46]} 25. Rg1 {[%emt 0:01:30]} Rd6 {[%emt 0:01:11]} 26. Ne2 {[%emt 0:01:33]} Qxh4 {[%emt 0:00:18]} 27. Nd4 {[%emt 0:00:33]} Rb6 {[%emt 0:00:52]} 28. Ka1 {[%emt 0:00:55]} Rf6 {[%emt 0:03:49]} 29. f3 {[%emt 0:02:43]} e5 {[%emt 0:00:18]} 30. Ne2 {[%emt 0:01:08]} d4 {[%emt 0:00:28]} 31. f4 {[%emt 0:01:08]} exf4 {[%emt 0:00:46]} 32. Qxd4 {[%emt 0:00:25]} Re8 {[%emt 0:00:49]} 33. Nc3 {[%emt 0:01:12]} Ree6 {[%emt 0:00:59]} 34. Ne4 {[%emt 0:00:40]} Rxe4 {[%emt 0:00:06]} 35. Qxe4 {[%emt 0:00:16]} Re6 {[%emt 0:00:10]} 36. Qb4 {[%emt 0:01:30]} Qf2 {[%emt 0:01:01]} 37. Rc1 {[%emt 0:00:28]} Qb6 {[%emt 0:01:16]} 38. Qf8 {[%emt 0:00:32]} f6 {[%emt 0:00:05]} 39. Qf7+ {[%emt 0:00:31]} Kh6 {[%emt 0:00:07]} 40. c4 {[%emt 0:00:24]} Qe3 {[%emt 0:00:12]} 41. Rb1 {[%emt 0:00:34]} Rb6 {[%emt 0:00:36]} 42. Bxf6 {[%emt 0:00:28]} Rxb1+ {[%emt 0:00:18]} 43. Kxb1 {[%emt 0:00:02]} h4 {[%emt 0:01:13]} 44. Qg7+ {[%emt 0:00:34]} Kh5 {[%emt 0:00:01]} 45. Qh7+ {[%emt 0:00:10]} Kg4 {[%emt 0:00:03]} 46. Qxg6+ {[%emt 0:00:48]} Kf3 {[%emt 0:01:03]} 47. Qh5+ {[%emt 0:00:11]} Kg2 {[%emt 0:00:13]} 48. Qg4+ {[%emt 0:00:26]} Qg3 {[%emt 0:00:11]} 49. Qxh4 {[%emt 0:01:07]} Qd3+ {[%emt 0:00:44]} 50. Kb2 {[%emt 0:00:08]} Qxc4 {[%emt 0:00:14]} 51. Qg4+ {[%emt 0:00:37]} Kf2 {[%emt 0:01:02]} 52. Bh4+ {[%emt 0:00:30]} Ke3 {[%emt 0:00:14]} 53. Qg1+ {[%emt 0:00:56]} Kf3 {[%emt 0:00:16]} 54. Qd1+ {[%emt 0:00:25]} Qe2+ {[%emt 0:00:56]} 55. Qxe2+ {[%emt 0:00:01]} Kxe2 {[%emt 0:00:07]} 56. Kc3 {[%emt 0:00:18]} f3 {[%emt 0:00:10]} 57. a4 {[%emt 0:00:38]} f2 {[%emt 0:00:27]} 58. Bxf2 {[%emt 0:00:02]} Kxf2 {[%emt 0:00:09]} 59. Kd4 {[%emt 0:00:31]} Ke2 {[%emt 0:01:08]} 60. a5 {[%emt 0:00:33]} Kd2 {[%emt 0:01:35]} 61. a6 {[%emt 0:00:12]} bxa6 {[%emt 0:00:51]} 62. Kc4 {[%emt 0:00:12]} 1/2-1/2

[Event "10th Floripa Open 2024"]
[Site "Florianopolis"]
[Date "2024.01.28"]
[Round "10.10"]
[White "Galego, Luis"]
[Black "Caetano, Ryan Wesley Da Costa"]
[Result "1-0"]
[ECO "D79"]
[WhiteElo "2468"]
[BlackElo "2184"]
[Annotator "TA"]
[PlyCount "97"]
[EventDate "2024.01.10"]
[EventType "swiss"]
[EventCountry "BRA"]
[SourceTitle "playchess.com"]
[Source "ChessBase"]
[SourceQuality "1"]
[TimeControl "5400+30"]

{[%evp 20,96,27,19,18,0,15,13,4,0,11,1,3,14,18,11,12,8,27,0,95,95,104,105,104,110,103,102,106,102,111,106,108,115,110,114,114,89,111,112,117,114,116,108,108,108,112,103,137,123,129,71,73,50,81,0,365,316,300,45,91,45,889,814,810,775,717,695,1139,1102,1283,1283,1553,1552,12257,5110,29985,29986,29984]} 1. Nf3 {[%emt 0:05:50]} Nf6 {[%emt 0:00:41]} 2. g3 {[%emt 0:00:14]} g6 {[%emt 0:00:06]} 3. Bg2 {[%emt 0:00:05]} Bg7 {[%emt 0:00:05]} 4. c4 {[%emt 0:00:04]} O-O {[%emt 0:00:09]} 5. O-O {[%emt 0:00:21]} c6 {[%emt 0:00:37]} 6. d4 {[%emt 0:01:13]} d5 {[%emt 0:00:07]} 7. cxd5 {[%emt 0:02:30]} cxd5 {[%emt 0:00:08]} 8. Ne5 {[%emt 0:00:39]} e6 {[%emt 0:09:14]} 9. Nc3 {[%emt 0:04:44]} Nfd7 {[%emt 0:01:20]} 10. f4 {[%emt 0:13:23]} Nc6 {[%emt 0:11:36]} 11. e3 {[%emt 0:02:43]} Ndxe5 {[%emt 0:01:28]} 12. fxe5 {[%emt 0:00:04]} f6 {[%emt 0:00:40]} 13. exf6 {[%emt 0:00:05]} Bxf6 {[%emt 0:00:15] The position is equal.} 14. Bd2 {[%emt 0:02:37]} Bd7 {[%emt 0:04:37]} 15. Rc1 {[%emt 0:06:34]} Rc8 {[%emt 0:07:33]} 16. Ne2 {[%emt 0:01:10]} Qb6 {[%emt 0:06:44]} 17. b3 {[%emt 0:06:20]} g5 {[%emt 0:07:44]} 18. Nc3 {[%emt 0:02:55]} Ne7 {[%emt 0:12:08]} 19. Kh1 {[%emt 0:07:20]} Qd6 {[%emt 0:06:08]} (19... h6 $11 {keeps the balance.}) 20. e4 $1 $16 {[%emt 0:09:07][%cal Of1f6]} Bxd4 {[%emt 0:05:08]} 21. Rxf8+ {[%emt 0:00:07]} Rxf8 {[%emt 0:03:23]} 22. Bxg5 {[%emt 0:01:19]} Bxc3 {[%emt 0:01:34]} 23. Rxc3 {[%emt 0:00:30]} Qe5 {[%emt 0:00:25][%csl LRc3,LRe4,LRg5]} 24. Bxe7 {[%emt 0:03:41]} Qxc3 {[%emt 0:00:04]} 25. Bxf8 {[%emt 0:00:15]} Kxf8 {[%emt 0:00:06]} 26. exd5 {[%emt 0:00:14]} exd5 {[%emt 0:00:13]} 27. Bxd5 {[%emt 0:00:25][%mdl 4096] Endgame. KQB-KQB} b6 {[%emt 0:05:54]} 28. Be4 {[%emt 0:05:25]} Ke7 {[%emt 0:01:05]} 29. Kg2 {[%emt 0:01:36]} ({Reject} 29. Bxh7 $6 Bc6+ 30. Kg1 Qe3+ 31. Kf1 Bb5+ 32. Kg2 Bc6+ 33. Kf1 Bb5+ 34. Kg2 Bc6+ 35. Kf1 $11) 29... h6 {[%emt 0:03:05]} 30. Qe2 {[%emt 0:02:51] And now Bf5+ would win.} Kd6 {[%emt 0:01:30]} 31. h4 {[%emt 0:00:13]} (31. Qd3+ {simplifies} Qxd3 32. Bxd3 Ke5 33. Kf3) 31... Qd4 {[%emt 0:01:28]} 32. Bf3 {[%emt 0:00:37]} a5 {[%emt 0:00:53]} 33. Qc2 {[%emt 0:02:27]} Qe3 {[%emt 0:01:02] [#]} 34. Qd1+ $1 {[%emt 0:01:01]} Kc7 {[%emt 0:01:01]} 35. h5 {[%emt 0:01:46]} (35. Qe2 $142 Qxe2+ 36. Bxe2) 35... b5 {[%emt 0:02:39]} 36. g4 {[%emt 0:02:00]} a4 {[%emt 0:00:39]} 37. Qc2+ {[%emt 0:07:05]} (37. Qg1 $16 Qf4 38. Qh2 Qxh2+ 39. Kxh2) 37... Kb6 $2 {[%emt 0:01:08][%mdl 8192]} (37... Kd6 $11 {and Black is okay.}) 38. bxa4 {[%emt 0:00:31]} bxa4 {[%emt 0:00:32]} 39. Qb2+ {[%emt 0:00:07]} (39. Qf2 $18 Qxf2+ 40. Kxf2) 39... Kc7 $1 $14 {[%emt 0:00:29] [#]} 40. a3 {[%emt 0:00:41]} ({Better is} 40. Qf2 $1 $16 {[%cal Rf2e3]} Qc1 41. Qa7+ Kd6 42. Qd4+ Ke7 43. Qg7+ Ke6 44. Qg6+ Ke7 45. Qg7+ Ke6 46. Qd4) 40... Qb3 {[%emt 0:01:09][%mdl 8192] Loses the game.} (40... Qf4 $14) 41. Qe5+ {[%emt 0:00:17]} Kd8 {[%emt 0:00:38]} 42. Qh8+ {[%emt 0:02:57]} Kc7 {[%emt 0:00:06]} 43. Qxh6 {[%emt 0:00:54] aiming for Qf4+.} Qxa3 {[%emt 0:00:05]} 44. Qf4+ {[%emt 0:00:02]} Kd8 {[%emt 0:00:20]} 45. h6 {[%emt 0:01:40] Intending Qf6+ and mate.} Qb2+ {[%emt 0:00:42]} 46. Kg3 {[%emt 0:00:05] Threatening mate with Qf8+.} a3 {[%emt 0:00:25][%cal Ba4a3,Ba3a2][%mdl 32]} 47. Qf8+ {[%emt 0:00:36]} (47. h7 $142 Qh8 48. Qg5+ Kc7 49. Qa5+ Kd6 50. Qxa3+ Kc7 51. Qa5+ Kd6 52. Qb4+ Kc7 53. Qe7) 47... Kc7 {[%emt 0:00:23]} 48. h7 {[%emt 0:00:54]} a2 {[%emt 0:00:20]} 49. h8=Q {[%emt 0:00:27] Weighted Error Value: White=0.26 (precise) /Black=0.51.  Loses game:     	---       	Black=2      Missed win:     	White=1     	---        Mistake:       	White=3     	Black=1      Inaccurate:     	White=1     	Black=2      OK:         	White=10    	Black=9      Best:        	White=1     	Black=1      Strong:       	White=1     	Black=1} ({Inferior is} 49. h8=B a1=Q 50. Bxb2 Qxb2 $11) 1-0

[Event "10th Floripa Open 2024"]
[Site "Florianopolis"]
[Date "2024.01.28"]
[Round "10.10"]
[White "Galego, Luis"]
[Black "Caetano, Ryan Wesley Da Costa"]
[Result "*"]
[ECO "D79"]
[WhiteElo "2468"]
[BlackElo "2184"]
[Annotator "RC"]
[PlyCount "44"]
[EventDate "2024.01.10"]
[EventType "swiss"]
[EventCountry "BRA"]
[SourceTitle "playchess.com"]
[Source "ChessBase"]
[SourceQuality "1"]
[TimeControl "5400+30"]

1. Nf3 {[%emt 0:05:50]} Nf6 {[%emt 0:00:41]} 2. g3 {[%emt 0:00:14]} g6 {[%emt 0:00:06]} 3. Bg2 {[%emt 0:00:05]} Bg7 {[%emt 0:00:05]} 4. c4 {[%emt 0:00:04]} O-O {[%emt 0:00:09]} 5. O-O {[%emt 0:00:21]} c6 {[%emt 0:00:37]} 6. d4 {[%emt 0:01:13]} d5 {[%emt 0:00:07]} 7. cxd5 {[%emt 0:02:30]} cxd5 {[%emt 0:00:08]} 8. Ne5 {[%emt 0:00:39]} e6 {[%emt 0:09:14]} 9. Nc3 {[%emt 0:04:44]} Nfd7 {[%emt 0:01:20]} 10. f4 {[%emt 0:13:23]} Nc6 {[%emt 0:11:36]} 11. e3 {[%emt 0:02:43]} Ndxe5 {[%emt 0:01:28]} 12. fxe5 {[%emt 0:00:04]} f6 {[%emt 0:00:40]} 13. exf6 {[%emt 0:00:05]} Bxf6 {[%emt 0:00:15]} 14. Bd2 {[%emt 0:02:37]} Bd7 {[%emt 0:04:37]} 15. Rc1 {[%emt 0:06:34]} Rc8 {[%emt 0:07:33]} 16. Ne2 {[%emt 0:01:10]} Qb6 {[%emt 0:06:44]} 17. b3 {[%emt 0:06:20]} g5 {[%emt 0:07:44]} 18. Nc3 {[%emt 0:02:55]} Ne7 {[%emt 0:12:08]} 19. Kh1 {[%emt 0:07:20]} Qd6 {[%emt 0:06:08]} 20. e4 {[%emt 0:09:07]} Bxd4 {[%emt 0:05:08]} 21. Rf2 {[%emt 0:33:02]} Rf7 22. Rxf7 {[%emt 0:00:00]} Rf8 {[%emt 0:03:53]} *